fUSD/lending_fUSD_20240125
["ID","MTS","AMOUNT","RATE_DAILY","PERIOD"]
[312699636,1706159440039,-6000.0,0.000335,4]
[312699638,1706159440052,-729.22196397,0.000335,2]
[312699640,1706159440062,-154.4,0.0003379,2]
[312699642,1706159440072,-152.88280836,0.00033804,2]
[312699643,1706159440083,-1000.0,0.00034,4]
[312699644,1706159440093,-6164.81249171,0.00034,2]
[312699645,1706159440102,-205.0,0.00034257,21]
[312699646,1706159440112,-1000.0,0.00034512,2]
[312699647,1706159440124,-150.0,0.00034548,10]
[312699648,1706159440133,-152.88280836,0.00034761,2]
[312699649,1706159440147,-1214.34956569,0.000349,2]
[312699651,1706159440156,-1214.34956567,0.000349,2]
[312699653,1706159440167,-1214.34956567,0.000349,2]
[312699655,1706159440176,-1214.34956567,0.000349,2]
[312699657,1706159440185,-5000.0,0.00035,3]
[312699659,1706159440194,-1262.24661456,0.00035,4]
[312699661,1706159440203,-280.12915127,0.00035,2]
[312699663,1706159440214,-3273.14539905,0.00035,7]
[312699665,1706159440224,-700.0,0.00035,3]
[312699668,1706159440234,-1786.96,0.00035272,5]
[312699670,1706159440243,-1833.18,0.00035272,5]
[312699672,1706159440253,-66729.78668001,0.000355,30]
[312699674,1706159440262,-505.18,0.0003551,2]
[312699676,1706159440272,-434.0,0.0003554,2]
[312699678,1706159440285,-160.98573129,0.0003559,2]
[312699680,1706159440294,-154.4,0.00035616,2]
[312699682,1706159440303,-205.0,0.00035687,23]
[312699684,1706159440312,-152.88280836,0.00035718,2]
[312699686,1706159440321,-156.16298845,0.0003591,5]
[312699688,1706159440330,-10000.0,0.00036,4]
[312699690,1706159440340,-17051.99018658,0.00036,2]
[312699692,1706159440349,-1214.34956567,0.00036216,2]
[312699694,1706159440358,-150.0,0.00036577,2]
[312699696,1706159440367,-193.26,0.00036613,15]
[312699698,1706159440376,-152.88280836,0.00036675,2]
[312699700,1706159440385,-206.23563858,0.0003687,5]
[312699702,1706159440394,-150.35,0.0003687,5]
[312699704,1706159440404,-1798.89,0.00036873,5]
[312699706,1706159440413,-1812.93,0.00036874,5]
[312699708,1706159440421,-1809.24,0.00036875,5]
[312699710,1706159440435,-1789.22,0.00036875,5]
[312699712,1706159440444,-5000.0,0.0003689,7]
[312699714,1706159440454,-750.0,0.00037,3]
[312699716,1706159440464,-205.0,0.00037117,25]
[312699718,1706159440475,-172.12827896,0.00037298,14]
[312699721,1706159440494,-154.4,0.00037443,2]
[312699723,1706159440503,-176.0,0.00037625,2]
[312699725,1706159440516,-152.88280836,0.00037632,2]
[312699727,1706159440534,-153.52,0.000377,3]
[312699729,1706159440545,-298.31,0.000377,3]
[312699731,1706159440555,-298.31,0.000377,3]
[312699733,1706159440564,-298.31,0.000377,3]
[312699735,1706159440575,-298.31,0.000377,3]
[312699737,1706159440584,-298.31,0.000377,3]
[312699739,1706159440594,-298.31,0.000377,3]
[312699741,1706159440604,-298.31,0.000377,3]
[312699743,1706159440613,-298.31,0.000377,3]
[312699745,1706159440623,-298.31,0.000377,3]
[312699748,1706159440633,-298.31,0.000377,3]
[312699750,1706159440642,-298.31,0.000377,3]
[312699752,1706159440652,-298.31,0.000377,3]
[312699754,1706159440661,-298.31,0.000377,3]
[312699756,1706159440671,-298.31,0.000377,3]
[312699758,1706159440680,-298.31,0.000377,3]
[312699760,1706159440690,-298.31,0.000377,3]
[312699762,1706159440699,-298.31,0.000377,3]
[312699764,1706159440709,-298.31,0.000377,3]
[312699766,1706159440719,-298.31,0.000377,3]
[312699768,1706159440729,-298.31,0.000377,3]
[312699770,1706159440738,-505.18,0.00037774,2]
[312699772,1706159440748,-1214.34956567,0.00037795,2]
[312699774,1706159440759,-1000.0,0.000378,2]
[312699776,1706159440769,-2590.15,0.00037808,2]
[312699778,1706159440780,-233.34,0.00037808,2]
[312699780,1706159440790,-2735.0,0.0003789,4]
[312699781,1706159440800,-3148.06156869,0.00037897,2]
[312699782,1706159440810,-150.506275,0.000379,3]
[312699783,1706159440820,-1600.0,0.000379,13]
[312699784,1706159440829,-305671.6988717,0.000379,2]
[312699785,1706159440846,-291878.2767353,0.000379,2]
[312699786,1706159440856,-24450.17218279,0.000379,2]
[312699787,1706159440866,-150.0,0.00037914,2]
[312699788,1706159440875,-1801.76,0.00037936,5]
[312699789,1706159440885,-10000.0,0.00038,5]
[312699790,1706159440895,-162.0,0.00038,2]
[312699791,1706159440905,-7015.59,0.0003814,10]
[312699792,1706159440914,-5846.32,0.0003814,10]
[312699793,1706159440924,-6779.0,0.0003815,30]
[312699794,1706159440934,-6779.0,0.0003815,60]
[312699795,1706159440946,-200.0,0.00038248,5]
[312699797,1706159440956,-151.90559164,0.0003829,2]
[312699798,1706159440965,-3110.0,0.00038356,10]
[312699799,1706159440975,-150.0,0.00038356,2]
[312699800,1706159440985,-150.0,0.00038378,2]
[312699801,1706159440995,-203.79145731,0.00038415,7]
[312699802,1706159441005,-202.52059253,0.0003848,7]
[312699803,1706159441017,-150.0,0.00038538,2]
[312699804,1706159441028,-205.0,0.00038547,27]
[312699805,1706159441038,-152.88280836,0.00038589,2]
[312699806,1706159441048,-150.0,0.00038641,2]
[312699807,1706159441058,-5749.69984106,0.00038666,5]
[312699808,1706159441067,-150.0,0.00038714,2]
[312699809,1706159441077,-150.0,0.00038776,2]
[312699810,1706159441086,-1857.0,0.00038791,2]
[312699811,1706159441096,-950.623,0.00038791,2]
[312699812,1706159441105,-837.0,0.00038791,2]
[312699813,1706159441115,-1837.458,0.00038791,2]
[312699814,1706159441128,-451.225,0.00038791,2]
[312699815,1706159441138,-635.446,0.00038791,2]
[312699816,1706159441147,-214.237,0.00038791,2]
[312699817,1706159441157,-428.495,0.00038791,2]
[312699818,1706159441167,-236.0,0.00038791,2]
[312699819,1706159441177,-1138.0,0.00038791,2]
[312699820,1706159441187,-370.15,0.00038791,2]
[312699821,1706159441197,-864.0,0.00038791,2]
[312699822,1706159441209,-509.098,0.00038791,2]
[312699823,1706159441220,-953.362,0.00038799,2]
[312699824,1706159441229,-4188.372,0.00038799,2]
[312699825,1706159441239,-2919.206,0.00038799,2]
[312699826,1706159441249,-2284.904,0.00038799,2]
[312699827,1706159441259,-5015.573,0.00038799,2]
[312699828,1706159441268,-3894.05466884,0.00038799,2]
[312699829,1706159441293,-1036.56534125,0.00038799,2]
[312699830,1706159442115,-1313.70377315,0.00038799,2]
[312699835,1706159442358,-336.02568406,0.00038799,2]
[312699851,1706159442840,-3014.9603037,0.00028147,2]
[312699852,1706159442850,-75.40010231,0.000378,2]
[312699853,1706159442914,-121.31735357,0.000378,2]
[312699854,1706159442924,-320.42264643,0.00038799,2]
[312699855,1706159445548,-3441.49867248,0.0003814,10]
[312699856,1706159445559,-455.8499999,0.0003814,10]
[312699857,1706159445606,-974.58132762,0.0003814,10]
[312699858,1706159445615,-3700.52867238,0.00038799,2]
[312699859,1706159445664,-1089.96775388,0.00038799,2]
[312699860,1706159445722,-1102.74167354,0.00038799,2]
[312699861,1706159445785,-4613.65668647,0.00038799,2]
[312699862,1706159494349,204.0,0.00021385,2]
[312699875,1706160631621,-310.0,0.00021799,2]
[312699876,1706160631635,-45.01316218,0.00021799,2]
[312699877,1706160631645,-321.90171781,0.00021799,2]
[312699878,1706160631786,-2184.77761503,0.00021799,2]
[312699879,1706160631795,-270.6360857,0.000218,2]
[312699880,1706160631805,-162.38510977,0.000227,2]
[312699881,1706160631815,-150.0,0.00022797,2]
[312699882,1706160631825,-6678.78219131,0.00022798,2]
[312699883,1706160631864,-742.52255332,0.00022798,2]
[312699884,1706160631873,-524.31645799,0.00022798,2]
[312699885,1706160631882,-500.0,0.000228,2]
[312699886,1706160631892,-1505.52163257,0.000228,2]
[312699887,1706160631903,-671.04925394,0.000228,2]
[312699888,1706160631914,-1012.23348766,0.000228,2]
[312699927,1706160637563,-509.81995337,0.000228,2]
[312699928,1706160637871,-96301.37567246,0.000228,2]
[312699929,1706160637881,-1000.0,0.000228,2]
[312699930,1706160637890,-450.0,0.00025,3]
[312699931,1706160637899,-717.21,0.00025905,2]
[312699932,1706160637908,-500.0,0.00026,2]
[312699933,1706160637918,-499.99,0.00026,2]
[312699934,1706160637927,-500.0,0.00027,3]
[312699935,1706160637937,-162.38510973,0.0002762,2]
[312699936,1706160637946,-3065.0,0.000284,2]
[312699937,1706160637955,-247.88536034,0.000284,2]
[312699939,1706160637984,-404.64145571,0.000284,2]
[312699944,1706160638019,-8422.47318395,0.000284,2]
[312699945,1706160638029,-550.0,0.00029,3]
[312699947,1706160638038,-155.0,0.0003,2]
[312699949,1706160638047,-600.0,0.00031,3]
[312699951,1706160638058,-162.38510973,0.0003254,2]
[312699953,1706160638068,-1000.0,0.00034,4]
[312699955,1706160638077,-323.88,0.00034016,2]
[312699957,1706160638085,-150.0,0.000349,2]
[312699959,1706160638095,-250.0,0.00035933,2]
[312699961,1706160638103,-1000.0,0.00035955,2]
[312699963,1706160638112,-270.03,0.00035964,2]
[312699965,1706160638121,-150.0,0.00035964,2]
[312699967,1706160638130,-206.0,0.00035977,2]
[312699969,1706160638140,-323.88,0.00036279,2]
[312699971,1706160638149,-159.17,0.00036318,2]
[312699973,1706160638158,-1000.0,0.000367,7]
[312699974,1706160638167,-1753.69,0.00036752,2]
[312699976,1706160638176,-161.05,0.00036753,15]
[312699978,1706160638186,-250.0,0.00036753,2]
[312699980,1706160638195,-1193.82605045,0.0003679,2]
[312699982,1706160638205,-241.39,0.00036843,2]
[312699984,1706160638214,-161.62,0.00036848,2]
[312699986,1706160638223,-151.90559164,0.00036859,2]
[312699988,1706160638233,-166.77,0.00036874,2]
[312699990,1706160638243,-200.0,0.00036885,5]
[312699992,1706160638254,-1836.75,0.00036888,5]
[312699994,1706160638264,-1837.24,0.00036888,5]
[312699996,1706160638273,-1776.73,0.00036889,5]
[312699998,1706160638283,-1817.33,0.00036889,5]
[312700000,1706160638294,-1807.57,0.00036889,5]
[312700002,1706160638309,-1824.97,0.0003689,5]
[312700004,1706160638319,-5000.0,0.0003689,7]
[312700006,1706160638329,-1843.19,0.0003689,5]
[312700008,1706160638339,-1798.41,0.0003689,5]
[312700010,1706160638350,-1841.73,0.0003689,5]
[312700012,1706160638359,-1829.24,0.0003689,5]
[312700014,1706160638368,-765.32105858,0.0003689,5]
[312700016,1706160638385,-1055.23894142,0.0003689,5]
[312700018,1706160638395,-372.76105858,0.0003689,5]
[312700085,1706160640222,-1427.25894142,0.0003689,5]
[312700086,1706160640232,-1777.36,0.0003689,5]
[312700087,1706160640241,-1834.24,0.0003689,5]
[312700088,1706160640251,-1842.59,0.0003689,5]
[312700089,1706160640260,-155.56,0.0003703,2]
[312700090,1706160640269,-175.0,0.00037195,2]
[312700091,1706160640278,-1193.82605045,0.00037405,2]
[312700092,1706160640287,-162.38510973,0.0003746,2]
[312700093,1706160640297,-10533.9,0.000375,5]
[312700094,1706160640309,-206.0,0.00037579,5]
[312700095,1706160640319,-631.37989837,0.000376,7]
[312700096,1706160640332,-368.62010163,0.000376,7]
[312700097,1706160640342,-153.57,0.000377,3]
[312700098,1706160640352,-293.99,0.000377,3]
[312700099,1706160640361,-293.99,0.000377,3]
[312700100,1706160640370,-293.99,0.000377,3]
[312700101,1706160640379,-293.99,0.000377,3]
[312700102,1706160640388,-52.44985661,0.000377,3]
[312700103,1706160640411,-241.54014339,0.000377,3]
[312700104,1706160640421,-293.99,0.000377,3]
[312700105,1706160640430,-293.99,0.000377,3]
[312700106,1706160640442,-293.99,0.000377,3]
[312700107,1706160640451,-293.99,0.000377,3]
[312700108,1706160640460,-293.99,0.000377,3]
[312700109,1706160640470,-293.99,0.000377,3]
[312700110,1706160640479,-293.99,0.000377,3]
[312700111,1706160640488,-293.99,0.000377,3]
[312700112,1706160640497,-293.99,0.000377,3]
[312700113,1706160640506,-293.99,0.000377,3]
[312700114,1706160640516,-293.99,0.000377,3]
[312700115,1706160640525,-293.99,0.000377,3]
[312700116,1706160640535,-293.99,0.000377,3]
[312700117,1706160640544,-293.99,0.000377,3]
[312700118,1706160640554,-293.99,0.000377,3]
[312700119,1706160640566,-162.0,0.00038,2]
[312700120,1706160640575,-1193.82605045,0.0003802,2]
[312700121,1706160640584,-2998.58380616,0.00038139,4]
[312700173,1706160642647,-149.00760763,0.00038139,4]
[312700176,1706160642657,-483.69694519,0.0003814,10]
[312700179,1706160642669,-264.1135013,0.0003814,10]
[312700181,1706160642680,-306.0,0.0003814,10]
[312700182,1706160642765,-5149.78955351,0.0003814,10]
[312700183,1706160642774,-5169.66,0.0003814,10]
[312700184,1706160642784,-6703.0,0.0003815,30]
[312700185,1706160642793,-6703.0,0.0003815,60]
[312700186,1706160642802,-3110.0,0.00038356,10]
[312700187,1706160642814,-150.0,0.00038356,2]
[312700188,1706160642823,-5000.0,0.00038462,3]
[312700189,1706160642833,-1726.76,0.00038479,2]
[312700190,1706160642842,-241.39,0.00038487,2]
[312700191,1706160642851,-1000.0,0.000385,7]
[312700192,1706160642860,-203.15602492,0.00038502,7]
[312700193,1706160642869,-3539.33614036,0.00038543,28]
[312700194,1706160642878,-323.88,0.00038543,2]
[312700195,1706160642888,-1193.82605045,0.00038635,2]
[312700196,1706160642898,-5749.69984106,0.00038668,5]
[312700197,1706160642907,-402.42,0.00038764,2]
[312700198,1706160642917,-402.42,0.00038764,2]
[312700199,1706160642926,-150.01,0.00038798,2]
[312700200,1706160642935,-3301.0962401,0.00038798,2]
[312700201,1706160642945,-155.0,0.00038799,2]
[312700202,1706160642954,-605.35888,0.00038799,2]
[312700203,1706160642963,-154.2240245,0.0003888,2]
[312700204,1706160642972,-282.26694691,0.0003898,2]
[312700205,1706160642982,-402.01,0.00038998,2]
[312700206,1706160642991,-401.08,0.00038998,2]
[312700207,1706160643001,-584.23897063,0.00038998,4]
[312700208,1706160643010,-620.81629579,0.00039,4]
[312700209,1706160643019,-1430.03686544,0.00039,2]
[312700210,1706160643028,-1281.94,0.00039,2]
[312700211,1706160643038,-701.12691554,0.00039,10]
[312700212,1706160643047,-2440.99608482,0.00039083,2]
[312700213,1706160643057,-539.05151927,0.00039094,4]
[312700214,1706160643066,-150.0,0.00039113,2]
[312700215,1706160643075,-150.52430217,0.0003915,30]
[312700216,1706160643085,-152.0,0.0003915,30]
[312700217,1706160643095,-206.0,0.0003918,9]
[312700218,1706160643104,-200.0,0.00039236,7]
[312700220,1706160643114,-200.0,0.00039236,7]
[312700222,1706160643124,-170.8,0.0003926,2]
[312700224,1706160643134,-150.0,0.00039366,2]
[312700226,1706160643144,-778.8580762,0.000394,2]
[312700228,1706160643154,-1000.0,0.000394,7]
[312700230,1706160643163,-500.0,0.00039445,7]
[312700232,1706160643172,-500.0,0.00039445,7]
[312700234,1706160643181,-500.0,0.00039445,7]
[312700236,1706160643191,-500.0,0.00039445,7]
[312700238,1706160643200,-500.0,0.00039445,7]
[312700240,1706160643209,-505.25,0.00039445,7]
[312700242,1706160643218,-500.0,0.00039445,7]
[312700244,1706160643227,-977.0189236,0.00039497,4]
[312700246,1706160643236,-92985.2472,0.00039626,2]
[312700247,1706160643245,-942.96,0.00039723,2]
[312700249,1706160643254,-341.27886702,0.00039723,2]
[312700257,1706160643322,-601.68113298,0.00039723,2]
[312700259,1706160643332,-942.96,0.00039723,2]
[312700260,1706160643341,-402.42,0.00039723,2]
[312700261,1706160643350,-942.96,0.00039723,2]
[312700262,1706160643360,-402.42,0.00039723,2]
[312700263,1706160643368,-402.42,0.00039723,2]
[312700264,1706160643377,-942.96,0.00039723,2]
[312700265,1706160643576,-942.96,0.00039723,2]
[312700266,1706160643589,-402.42,0.00039723,2]
[312700267,1706160643599,-198.02956097,0.00039723,2]
[312700268,1706160643610,-204.39043903,0.00039723,2]
[312700269,1706160643619,-942.96,0.00039723,2]
[312700270,1706160643630,-400.97494673,0.00039723,2]
[312700292,1706160645775,-356.20768879,0.00038138,2]
[312700294,1706160645785,-564.60120648,0.00038139,4]
[312700295,1706160645819,-2061.14271177,0.00038139,4]
[312700296,1706160645829,-1193.82605045,0.0003925,2]
[312700297,1706160645839,-1.44505327,0.00039723,2]
[312700298,1706160645848,-942.96,0.00039723,2]
[312700299,1706160645858,-402.42,0.00039723,2]
[312700300,1706160645867,-10.73984171,0.00039723,2]
[312700301,1706160645887,-408.1979072,0.00039723,2]
[312700302,1706160645916,-524.02225109,0.00039723,2]
[312700303,1706160645926,-27.52774891,0.00039723,2]
[312700319,1706161831827,-155.0,0.00032973,2]
[312700320,1706161831836,-306.57652245,0.00032974,2]
[312700321,1706161831848,-193.42347755,0.00032974,2]
[312700322,1706161831858,-206.0,0.00032977,2]
[312700323,1706161831868,-356.63609235,0.0003496,4]
[312700324,1706161831880,-643.36390765,0.0003496,4]
[312700325,1706161831891,-180.42492922,0.00034961,3]
[312700326,1706161831905,-219.57507078,0.00034961,3]
[312700327,1706161831916,-206.0,0.00035056,6]
[312700328,1706161831929,-299.71,0.00035778,2]
[312700329,1706161831940,-337.8,0.00036831,2]
[312700330,1706161831950,-730.50948662,0.00036861,2]
[312700331,1706161831962,-641.18813765,0.00036861,2]
[312700332,1706161831975,-1333.30237573,0.00036861,2]
[312700333,1706161831986,-380.04070837,0.00036864,2]
[312700334,1706161832017,-1619.95929163,0.00036864,2]
[312700335,1706161832027,-347.97122027,0.00036868,2]
[312700336,1706161832092,-322.12877973,0.00036868,2]
[312700337,1706161832102,-1142.248302,0.00036882,2]
[312700340,1706161832199,-622.59271794,0.00036882,2]
[312700341,1706161832212,-1033.7,0.00036882,2]
[312700348,1706161832255,-300.0,0.00036882,2]
[312700350,1706161832267,-266.569,0.00036882,2]
[312700379,1706161837801,-1378.25040696,0.00036882,2]
[312700380,1706161837914,-1154.5495731,0.00036882,2]
[312700381,1706161837926,-543.88,0.00036885,2]
[312700382,1706161837935,-200.0,0.00037046,2]
[312700383,1706161837944,-206.0,0.00037135,10]
[312700384,1706161837954,-1438.96,0.00037238,2]
[312700385,1706161837963,-171.79,0.00037246,2]
[312700386,1706161837973,-1852.42,0.00037262,2]
[312700387,1706161837982,-150.0,0.00037268,2]
[312700388,1706161837991,-26348.5824,0.000374,2]
[312700389,1706161838002,-250.0,0.00037419,2]
[312700390,1706161838013,-250.0,0.00037445,2]
[312700391,1706161838023,-166.79,0.0003746,2]
[312700392,1706161838032,-1032.2,0.00037469,2]
[312700393,1706161838041,-2231.58,0.00037472,2]
[312700394,1706161838050,-500.0,0.00037478,2]
[312700395,1706161838062,-560.0,0.00037487,3]
[312700396,1706161838071,-188.91,0.00037487,2]
[312700397,1706161838081,-162.38510973,0.00037564,2]
[312700398,1706161838091,-1000.0,0.000376,7]
[312700399,1706161838101,-229.56,0.00037624,2]
[312700400,1706161838110,-800.0,0.00037695,2]
[312700401,1706161838119,-750.0,0.00037695,2]
[312700402,1706161838128,-178.23,0.00037695,2]
[312700403,1706161838137,-499.99,0.000377,2]
[312700404,1706161838147,-153.57,0.000377,3]
[312700405,1706161838156,-235.81,0.000377,3]
[312700406,1706161838166,-235.81,0.000377,3]
[312700407,1706161838175,-235.81,0.000377,3]
[312700408,1706161838184,-235.81,0.000377,3]
[312700409,1706161838194,-235.81,0.000377,3]
[312700411,1706161838203,-235.81,0.000377,3]
[312700413,1706161838212,-235.81,0.000377,3]
[312700415,1706161838221,-235.81,0.000377,3]
[312700416,1706161838231,-235.81,0.000377,3]
[312700418,1706161838240,-235.81,0.000377,3]
[312700420,1706161838250,-235.81,0.000377,3]
[312700422,1706161838259,-235.81,0.000377,3]
[312700424,1706161838268,-235.81,0.000377,3]
[312700426,1706161838278,-235.81,0.000377,3]
[312700428,1706161838287,-235.81,0.000377,3]
[312700430,1706161838296,-235.81,0.000377,3]
[312700432,1706161838305,-235.81,0.000377,3]
[312700434,1706161838314,-235.81,0.000377,3]
[312700436,1706161838323,-235.81,0.000377,3]
[312700438,1706161838332,-235.81,0.000377,3]
[312700440,1706161838341,-155.56,0.00037712,2]
[312700442,1706161838350,-151.90559164,0.00037736,2]
[312700444,1706161838359,-160.06,0.00037741,2]
[312700446,1706161838368,-200.0,0.0003781,2]
[312700448,1706161838377,-15371.31999071,0.00037842,2]
[312700450,1706161838385,-1000.0,0.00038,8]
[312700452,1706161838394,-200.0,0.00038007,2]
[312700454,1706161838403,-299.71,0.00038042,2]
[312700456,1706161838412,-165.31,0.00038304,2]
[312700458,1706161838421,-500.0,0.0003835,2]
[312700460,1706161838430,-150.0,0.00038356,2]
[312700462,1706161838439,-1000.0,0.000385,7]
[312700464,1706161838449,-182.84042243,0.00038502,7]
[312700466,1706161838458,-225.42577544,0.00038502,7]
[312700468,1706161838467,-670.1,0.00038512,2]
[312700470,1706161838476,-161.05,0.00038517,15]
[312700472,1706161838485,-240.57,0.0003854,120]
[312700474,1706161838494,-174.4865,0.00038654,2]
[312700477,1706161838503,-16954.3444,0.00038654,2]
[312700478,1706161838511,-4308.05,0.00038697,10]
[312700480,1706161838520,-1000.0,0.000387,8]
[312700482,1706161838530,-10000.0,0.00038707,2]
[312700484,1706161838539,-402.42,0.00038764,2]
[312700487,1706161838548,-915.43,0.00038764,2]
[312700489,1706161838559,-942.96,0.00038764,2]
[312700491,1706161838568,-402.42,0.00038764,2]
[312700493,1706161838576,-942.96,0.00038764,2]
[312700494,1706161838585,-402.42,0.00038764,2]
[312700496,1706161838594,-402.42,0.00038764,2]
[312700498,1706161838603,-942.96,0.00038764,2]
[312700499,1706161838613,-942.96,0.00038764,2]
[312700500,1706161838622,-402.42,0.00038764,2]
[312700501,1706161838631,-402.42,0.00038764,2]
[312700502,1706161838641,-942.96,0.00038764,2]
[312700503,1706161838650,-942.96,0.00038764,2]
[312700504,1706161838659,-942.96,0.00038764,2]
[312700505,1706161838668,-942.96,0.00038764,2]
[312700506,1706161838677,-942.96,0.00038764,2]
[312700507,1706161838687,-942.96,0.00038764,2]
[312700508,1706161838696,-942.96,0.00038764,2]
[312700509,1706161838705,-942.96,0.00038764,2]
[312700510,1706161838714,-942.96,0.00038764,2]
[312700511,1706161838724,-942.96,0.00038764,2]
[312700512,1706161838734,-958.47,0.00038764,2]
[312700513,1706161838743,-14994.9941946,0.00038812,2]
[312700514,1706161838768,-16006.17264318,0.00038812,2]
[312700517,1706161840368,-301.92261199,0.00038812,2]
[312700518,1706161840998,-368.5956232,0.00038812,2]
[312700519,1706161841012,-261.72100027,0.00038812,2]
[312700548,1706161843277,-499.99,0.00037419,2]
[312700549,1706161843287,-3590.05,0.00038697,10]
[312700550,1706161843297,-1875.24112884,0.00038812,2]
[312700551,1706161843309,-308.97222742,0.00038812,2]
[312700552,1706161843336,-3544.22573241,0.00038812,2]
[312700554,1706161845969,-255.9000191,0.00038811,4]
[312700557,1706161913529,741.15600948,0.00021689,2]
[312700563,1706162325564,610.8682776,0.00021689,2]
[312700564,1706162349569,211.96929428,0.00021689,2]
[312700565,1706162510871,238.63615049,0.00020877,2]
[312700566,1706162695859,20311.67,0.00021683,2]
[312700567,1706162841867,2705.0,0.00021621,2]
[312700568,1706162843211,289.71,0.00021621,2]
[312700569,1706162843662,2565.01,0.00021621,2]
[312700570,1706162944703,161.3355759,0.00021611,2]
[312700571,1706162947164,250.0,0.00021639,2]
[312700572,1706162952071,468.04,0.00019722,2]
[312700577,1706163003736,377.41915313,0.000217,2]
[312700578,1706163028867,401.12338196,0.000217,2]
[312700590,1706163032461,172.13700095,0.000217,2]
[312700604,1706163033228,-525.90736384,0.00021701,2]
[312700605,1706163033239,-155.0,0.00021701,2]
[312700606,1706163033249,-199.52500903,0.00021702,2]
[312700607,1706163033260,-2455.73265862,0.00021702,2]
[312700608,1706163038368,-424.88308538,0.00021701,2]
[312700609,1706163038483,155.0,0.000217,2]
[312700610,1706163038500,-4207.65219864,0.00021701,2]
[312700611,1706163038509,-2995.27832497,0.00021702,2]
[312700612,1706163038519,-300.0,0.00021709,2]
[312700613,1706163038528,-150.0,0.00021709,2]
[312700614,1706163038538,-230.54,0.00021743,2]
[312700615,1706163038547,-360.0,0.00021743,2]
[312700616,1706163038557,-381.21,0.00021743,2]
[312700617,1706163038566,-2000.0,0.00021743,2]
[312700618,1706163038576,-2189.3528,0.00021777,2]
[312700619,1706163038586,-460.95790533,0.00021876,2]
[312700620,1706163038596,-156962.6900318,0.00021877,2]
[312700621,1706163038605,-250.0,0.00021918,2]
[312700622,1706163038615,-468.04,0.00021986,2]
[312700623,1706163038629,-499.99,0.0002199,2]
[312700624,1706163038638,-18602.31745321,0.0002199,2]
[312700625,1706163038649,-150.0,0.00022,2]
[312700626,1706163038658,-150.0,0.00022,2]
[312700627,1706163038668,-150.0,0.00022,2]
[312700628,1706163038677,-7434.05,0.00022063,2]
[312700629,1706163038686,-160.83,0.00022134,2]
[312700630,1706163038696,-160.83,0.00022364,2]
[312700631,1706163038705,-2500.0,0.00022382,3]
[312700632,1706163038714,-1236.75,0.00022478,2]
[312700634,1706163038724,-10000.0,0.00022547,2]
[312700635,1706163038733,-150.0,0.00022548,2]
[312700637,1706163038742,-153.43432432,0.00022548,2]
[312700639,1706163038751,-160.83,0.00022595,2]
[312700641,1706163038760,-21756.04657509,0.0002275,2]
[312700643,1706163038769,-44630.0,0.0002277,2]
[312700645,1706163038778,-1434.60004086,0.000228,2]
[312700647,1706163038787,-1400.0,0.000228,8]
[312700649,1706163038797,-160.83,0.00022826,2]
[312700651,1706163038806,-202.11531144,0.0002289,2]
[312700653,1706163038815,-202.663,0.000229,2]
[312700656,1706163038825,-6217.4104,0.000229,2]
[312700657,1706163038834,-309.6244,0.000229,2]